bitfinex/quotes_SOLUSD_20260214
["timestamp","ask_amount","ask_price","bid_price","bid_amount"]
[1771090745076,0.54082894,88.002,87.973,0.50907619]
[1771090745279,0.54082894,88.002,87.974,11.36699479]
[1771090745970,0.54082894,87.999,87.968,11.3677079]
[1771090746178,0.54082894,87.999,87.963,11.36833261]
[1771090746477,0.54082894,87.989,87.955,11.36945028]
[1771090747264,0.54082894,87.987,87.945,11.37074307]
[1771090747460,0.54082894,87.987,87.945,11.87981926]
[1771090747671,0.54082894,87.987,87.946,0.50907619]
[1771090748561,0.54082894,87.979,87.946,0.50907619]
[1771090748762,0.54082894,87.979,87.939,0.50907619]
[1771090749079,0.54082894,87.959,87.933,11.37217744]
[1771090749267,0.54082894,87.959,87.924,28.43348]
[1771090749268,0.54082894,87.957,87.928,11.88201768]
[1771090749465,0.54082894,87.957,87.929,0.50907619]
[1771090749666,0.54082894,87.971,87.941,0.50907619]
[1771090750061,11.36747951,87.971,87.941,0.50907619]
[1771090750279,0.54082894,87.97,87.941,0.50907619]
[1771090750968,0.54082894,87.97,87.928,39.80529523]
[1771090750969,0.54082894,87.969,87.928,11.37294149]
[1771090751369,0.54082894,87.967,87.929,0.50907619]
[1771090753490,0.54899952,87.965,87.931,0.53646203]
[1771090754390,0.54899952,87.969,87.941,0.53646203]
[1771090755476,11.36752434,87.97,87.941,0.53646203]
[1771090755680,0.54899952,87.978,87.943,0.53646203]
[1771090755988,0.54899952,87.969,87.937,0.53646203]
[1771090756888,0.54899952,87.969,87.936,11.37179453]
[1771090757472,0.54899952,87.959,87.936,11.37179453]
[1771090757690,0.54899952,87.959,87.931,11.37255347]
[1771090758588,2.89553845,87.95,87.926,11.37319398]
[1771090758796,0.54899952,87.949,87.926,11.37319398]
[1771090761881,0.54899952,87.939,87.917,11.37427289]
[1771090764590,0.54899952,87.939,87.903,28.44014509]
[1771090764591,0.54899952,87.939,87.91,11.37527016]
[1771090764789,0.54899952,87.939,87.911,0.53646203]
[1771090764989,0.54899952,87.937,87.911,0.53646203]
[1771090766699,11.37190684,87.936,87.911,0.53646203]
[1771090767679,0.54899952,87.937,87.913,0.53646203]
[1771090768089,11.37190684,87.936,87.913,0.53646203]
[1771090769690,11.37136925,87.941,87.915,0.53646203]
[1771090770100,11.37072122,87.946,87.915,0.53646203]
[1771090771307,0.54899952,87.946,87.917,0.53646203]
[1771090773313,0.54899952,87.944,87.917,0.53646203]
[1771090773611,0.54899952,87.944,87.916,11.37449383]
[1771090773804,0.54899952,87.944,87.916,11.91095586]
[1771090774919,52.08,87.959,87.898,39.72]
[1771090774920,0.54899952,87.956,87.921,0.53646203]
[1771090777596,0.54899952,87.954,87.923,0.53646203]
[1771090781314,0.54899952,87.954,87.925,0.54791378]
[1771090782313,0.54899952,87.954,87.927,0.54791378]
[1771090783516,0.53269895,87.952,87.928,11.37294149]
[1771090786411,0.53269895,87.952,87.931,0.55992865]
[1771090786617,0.53269895,87.964,87.931,0.55992865]
[1771090786831,56.81590919,88.004,87.928,39.80529523]
[1771090786832,0.53269895,87.971,87.941,0.55992865]
[1771090788419,0.53269895,87.969,87.943,0.55992865]
[1771090790502,0.53269895,87.975,87.945,0.55992865]
[1771090791732,0.53269895,87.995,87.961,0.55992865]
[1771090792024,0.53269895,87.993,87.961,0.55992865]
[1771090792224,0.53269895,87.993,87.951,0.55992865]
[1771090792520,0.53269895,87.993,87.96,2.89553845]
[1771090792699,0.53269895,87.993,87.96,3.4554671]
[1771090792895,0.53269895,87.993,87.961,0.55992865]
[1771090793644,0.53269895,87.993,87.971,0.55992865]
[1771090794221,0.53269895,87.991,87.968,11.36765651]
[1771090795309,0.53269895,87.991,87.964,0.55992865]
[1771090795711,0.53269895,87.991,87.958,0.55992865]
[1771090795908,0.53269895,87.979,87.943,0.55992865]
[1771090796241,0.53269895,87.979,87.882,5.36086188]
[1771090796242,0.53269895,88.009,87.971,0.55992865]
[1771090797105,0.53269895,88.009,87.981,0.55992865]
[1771090797325,0.53269895,88.007,87.981,0.55992865]
[1771090798506,0.53269895,88.007,87.976,0.55992865]
[1771090798816,0.53269895,88.007,87.981,0.55992865]
[1771090799012,0.1,88.01,87.991,0.55992865]
[1771090799217,0.1,88.01,87.954,39.62]
[1771090799218,0.53269895,88.008,87.972,11.36717579]
[1771090799735,0.53269895,88.008,87.972,11.92710444]
[1771090799899,0.53269895,88.008,87.973,0.55992865]
[1771090800321,0.53269895,88.008,87.967,11.36789267]
[1771090800520,0.53269895,88.008,87.97,2.89553845]
[1771090800722,0.53269895,88.006,87.971,11.36738243]
[1771090800918,0.53269895,88.006,87.972,0.55992865]
[1771090801724,0.1,88.01,87.99,3.4554671]
[1771090801926,0.63269895,88.01,87.99,3.4554671]
[1771090802126,0.63269895,88.01,87.99,0.55992865]
[1771090802905,0.63269895,88.01,87.981,11.3660904]
[1771090803103,0.63269895,88.01,87.982,0.55992865]
[1771090803333,0.53269895,87.999,87.966,0.55992865]
[1771090803507,0.53269895,87.989,87.953,0.55992865]
[1771090803715,0.53269895,87.979,87.946,0.55992865]
[1771090803940,0.53269895,87.979,87.942,11.37104218]
[1771090804232,0.53269895,87.979,87.943,0.55992865]
[1771090804528,4.61729252,88.006,87.935,0.55992865]
[1771090804529,0.53269895,87.969,87.935,0.55992865]
[1771090805611,0.53269895,87.967,87.935,0.55992865]
[1771090806633,0.53269895,87.967,87.936,11.93183549]
[1771090807535,0.53269895,87.967,87.936,0.55992865]
[1771090808125,0.53269895,87.965,87.936,0.55992865]
[1771090809718,0.53269895,87.963,87.936,0.55992865]
[1771090809923,0.53269895,87.963,87.931,0.55992865]
[1771090811638,10.19605304,87.964,87.931,0.55992865]
[1771090811812,11.36764087,87.969,87.932,11.37242414]
[1771090812018,11.36764087,87.969,87.933,0.55992865]
[1771090813513,0.52870761,87.966,87.935,0.5330214]
[1771090816138,0.52870761,87.964,87.937,0.5330214]
[1771090818020,0.52870761,87.964,87.905,4.61729252]
[1771090818021,0.52870761,87.947,87.901,0.5330214]
[1771090818335,0.52870761,87.939,87.901,0.5330214]
[1771090818728,0.52870761,87.939,87.911,0.5330214]
[1771090819850,0.52870761,87.939,87.912,11.37501137]
[1771090820033,0.52870761,87.939,87.913,0.5330214]
[1771090821142,0.52870761,87.939,87.914,11.37475259]
[1771090821469,0.52870761,87.938,87.914,11.37475259]
[1771090822836,0.52870761,87.938,87.915,0.5330214]
[1771090823629,0.52870761,87.936,87.915,0.5330214]
[1771090823942,0.52870761,87.936,87.915,11.90761531]
[1771090824546,2.89781146,87.93,87.91,0.5330214]
[1771090824735,0.52870761,87.929,87.91,0.5330214]
[1771090825438,0.52870761,87.939,87.91,0.5330214]
[1771090825951,0.52870761,87.945,87.912,0.5330214]
[1771090827428,11.36956595,87.955,87.914,0.5330214]
[1771090828148,11.36956595,87.955,87.913,39.81208694]
[1771090828149,0.52870761,87.964,87.921,0.5330214]
[1771090828330,11.36764726,87.969,87.921,0.5330214]
[1771090828539,0.52870761,87.968,87.921,0.5330214]
[1771090829029,0.52870761,87.959,87.921,0.5330214]
[1771090829230,0.52870761,87.949,87.921,0.5330214]
[1771090829732,2.89781146,87.94,87.922,11.37371761]
[1771090829957,0.52870761,87.939,87.922,11.37371761]
[1771090830457,11.89893353,87.949,87.923,0.5330214]
[1771090830628,0.52870761,87.939,87.922,11.37371761]
[1771090831832,2.89781146,87.96,87.919,0.5330214]
[1771090832032,2.89781146,87.95,87.919,0.5330214]
[1771090834156,0.36948803,87.949,87.921,0.5330214]
[1771090834334,0.37352291,87.957,87.921,0.5330214]
[1771090834954,0.37352291,87.949,87.921,0.5330214]
[1771090836839,0.38145416,87.955,87.923,0.5330214]
[1771090837162,0.38145416,87.954,87.923,0.5330214]
[1771090837757,0.38487708,87.949,87.923,0.5330214]
[1771090840455,0.38487708,87.949,87.924,11.90648029]
[1771090840661,0.39491177,87.962,87.925,0.5330214]
[1771090840966,0.39818012,87.966,87.925,0.5330214]
[1771090841662,4.61729252,88.004,87.931,0.6154049]
[1771090841663,0.40141094,87.975,87.931,0.6154049]
[1771090841873,0.40141094,87.975,87.941,0.6154049]
[1771090842043,0.40141094,87.981,87.941,0.6154049]
[1771090842770,11.36547058,87.986,87.951,0.58993849]
[1771090842948,0.40776166,87.985,87.951,0.58993849]
[1771090843258,11.36547058,87.986,87.951,0.58993849]
[1771090843259,0.41088242,87.979,87.951,0.58993849]
[1771090844666,11.77943791,87.986,87.953,0.58993849]
[1771090844844,0.41396733,87.985,87.953,0.58993849]
[1771090845754,0.41701682,87.983,87.955,0.58993849]
[1771090846548,11.36570285,87.984,87.955,0.58993849]
[1771090846749,0.63701306,87.996,87.97,2.89781146]
[1771090846952,0.1,88.01,87.981,0.58993849]
[1771090848145,0.1,88.01,87.983,0.58993849]
[1771090851349,0.57034514,88.009,87.985,0.58993849]
[1771090853179,0.1,88.01,87.985,0.58993849]
[1771090853356,0.1,88.01,87.987,0.58993849]
[1771090855761,0.1,88.01,87.988,11.36518616]
[1771090855762,0.67034514,88.01,87.988,11.36518616]
[1771090856880,0.67034514,88.01,87.98,3.48774995]
[1771090856881,1e-08,88.01,87.982,0.58993849]
[1771090857564,0.1,88.02,88.001,0.58993849]
[1771090858875,0.1,88.02,88.003,0.58993849]
[1771090860263,0.1,88.04,88.011,0.58993849]
[1771090860967,0.1,88.04,88.021,0.58993849]
[1771090863063,0.57034514,88.039,87.999,39.62]
[1771090863470,0.57034514,88.039,88.0,2.89781146]
[1771090864162,0.57034514,88.039,88.01,2.89781146]
[1771090865089,0.57034514,88.039,88.011,0.58993849]
[1771090865463,0.1,88.05,88.022,0.52607931]
[1771090866184,0.1,88.05,88.031,0.52607931]
[1771090866767,0.1,88.05,88.033,0.53285699]
[1771090867691,0.57034514,88.049,88.027,11.36011309]
[1771090869587,0.1,88.05,88.028,0.55274551]
[1771090869890,0.1,88.05,88.031,0.55274551]
[1771090870993,0.1,88.05,88.032,11.35950563]
[1771090871370,0.1,88.05,88.032,11.92511832]
[1771090871571,0.1,88.05,88.033,0.56561269]
[1771090873076,0.69635293,88.049,88.032,11.35950563]
[1771090874788,0.1,88.05,88.032,11.35950563]
[1771090877993,0.79635293,88.05,88.027,11.36010221]
[1771090878395,0.79635293,88.05,88.007,0.61422558]
[1771090878396,0.69635293,88.048,88.007,0.61422558]
[1771090878592,0.69635293,88.039,88.0,11.97786194]
[1771090879293,0.69635293,88.039,88.001,0.62000008]
[1771090881888,0.69635293,88.039,88.003,0.63133621]
[1771090883903,0.69635293,88.037,88.005,0.64241376]
[1771090884085,0.69635293,88.037,88.004,11.36311985]
[1771090884996,0.69635293,88.029,87.99,31.30500019]
[1771090885204,0.69635293,88.029,87.991,0.65327101]
[1771090885600,0.69635293,88.029,87.991,11.36479867]
[1771090887509,0.69635293,88.019,87.979,11.36633652]
[1771090887690,0.69635293,88.009,87.979,11.36633652]
[1771090889107,0.69635293,88.027,87.981,0.66908537]
[1771090890199,0.69635293,88.025,87.983,0.6793107]
[1771090891993,0.69635293,87.999,87.969,11.36759694]
[1771090892319,0.69635293,87.998,87.961,11.36867475]
[1771090892518,0.69635293,87.989,87.961,11.36867475]
[1771090893098,0.69635293,87.999,87.962,0.68930841]
[1771090896212,0.69635293,87.999,87.964,0.69727268]
[1771090897915,0.69635293,87.997,87.963,11.36841626]
[1771090898423,0.69635293,87.997,87.961,28.42168688]
[1771090900228,0.69635293,87.997,87.971,0.69727268]
[1771090901004,0.69635293,87.997,87.961,28.42168688]
[1771090901616,0.77685379,87.996,87.962,0.73596899]
[1771090903726,0.77685379,87.996,87.97,2.89268786]
[1771090904106,0.74002572,87.994,87.963,11.36841626]
[1771090905806,0.74002572,87.994,87.961,28.42168688]
[1771090906013,0.74002572,87.994,87.962,0.75736531]
[1771090906215,2.89268786,88.04,87.981,0.79581482]
[1771090906402,39.75059341,88.049,88.01,2.89268786]
[1771090906831,39.75059341,88.049,88.011,0.79581482]
[1771090907535,0.1,88.05,88.021,0.79581482]
[1771090907828,2.99268786,88.07,88.042,12.15403021]
[1771090907829,0.1,88.07,88.042,12.15403021]
[1771090908027,11.35473322,88.069,88.042,0.79581482]
[1771090908326,0.74002572,88.059,88.031,11.35951848]
[1771090910741,0.74002572,88.057,88.03,2.89268786]
[1771090911118,0.74002572,88.057,88.031,11.35963467]
[1771090911631,0.74002572,88.068,88.041,0.79581482]
[1771090912832,0.74002572,88.068,88.042,11.35821539]
[1771090913815,0.1,88.07,88.05,2.89268786]
[1771090914337,0.84002572,88.07,88.043,0.79581482]
[1771090914905,0.1,88.07,88.051,0.79581482]
[1771090916116,0.84002572,88.07,88.05,2.89268786]
[1771090916434,0.84002572,88.07,88.044,11.35795738]
[1771090916735,0.1,88.07,88.051,0.79581482]
[1771090917115,0.1,88.07,88.05,2.89268786]
[1771090917826,0.1,88.07,88.051,11.35705443]
[1771090919920,0.1,88.07,88.052,0.79581482]
[1771090920124,0.84002572,88.07,88.051,11.35705443]
[1771090922229,0.84002572,88.07,88.045,11.3578231]
[1771090925735,0.1,88.07,88.045,0.79581482]
[1771090925935,0.1,88.07,88.051,0.79581482]
[1771090927320,0.74002572,88.069,88.044,0.79581482]
[1771090927524,0.74002572,88.068,88.044,0.79581482]
[1771090927824,0.74002572,88.068,88.045,11.35782838]
[1771090929636,0.74002572,88.068,88.036,0.79581482]
[1771090929637,0.74002572,88.068,88.037,11.35886047]
[1771090930044,0.74002572,88.066,88.037,11.35886047]
[1771090930226,0.74002572,88.066,88.032,11.3594787]
[1771090931045,0.74002572,88.066,88.04,2.89091362]
[1771090931245,0.74002572,88.066,88.041,0.79581482]
[1771090931741,0.74002572,88.066,88.05,2.89091362]
[1771090931944,0.74002572,88.066,88.048,11.35738558]
[1771090934344,0.74002572,88.066,88.048,0.7418414]
[1771090934649,0.1,88.07,88.051,0.7418414]
[1771090936437,0.1,88.07,88.053,0.7418414]
[1771090936639,0.1,88.07,88.06,3.63275502]
[1771090937834,0.1,88.07,88.054,0.7418414]
[1771090939752,0.1,88.07,88.06,2.89091362]
[1771090939944,0.1,88.07,88.061,0.7418414]
[1771090940344,0.1,88.08,88.061,0.7418414]
[1771090940660,0.1,88.08,88.071,0.7418414]
[1771090940956,0.1,88.09,88.072,0.7418414]
[1771090941165,0.74450803,88.108,88.09,3.63275502]
[1771090941457,0.74450803,88.106,88.08,2.89091362]
[1771090941636,0.74450803,88.106,88.07,2.89091362]
[1771090942458,0.74450803,88.104,88.071,11.35447536]
[1771090944557,2.89091362,88.1,88.066,11.35502298]
[1771090944762,0.74450803,88.098,88.066,11.35502298]
[1771090945564,0.74450803,88.097,88.066,11.35502298]
[1771090946457,0.74450803,88.095,88.061,11.35576475]
[1771090947156,0.74450803,88.089,88.056,11.35630666]
[1771090947566,0.74450803,88.089,88.049,0.7418414]
[1771090947743,0.74450803,88.089,88.05,11.35718341]
[1771090948061,0.74450803,88.089,88.05,14.24809703]
[1771090948940,0.74450803,88.087,88.04,2.89091362]
[1771090949140,0.74450803,88.079,88.041,11.35832668]
[1771090949538,2.89091362,88.07,88.031,11.35963467]
[1771090949741,0.74450803,88.069,88.031,11.35963467]
[1771090949963,0.74450803,88.068,88.031,11.35963467]
[1771090950446,0.74450803,88.066,88.031,11.35963467]
[1771090951860,0.74450803,88.064,88.031,11.35963467]
[1771090952368,0.74450803,88.064,88.031,12.10147607]
[1771090955163,11.35524896,88.065,88.031,12.10147607]
[1771090955164,11.35550685,88.063,88.031,12.10147607]
[1771090955372,0.74450803,88.062,88.031,12.10147607]
[1771090956450,0.74450803,88.062,88.032,0.7418414]
[1771090957372,0.74450803,88.06,88.013,0.7418414]
[1771090957662,0.74450803,88.055,88.021,0.7418414]
[1771090960668,0.74450803,88.068,88.041,0.7418414]
[1771090961750,0.72727043,88.078,88.051,0.72633259]
[1771090963071,0.77212576,88.076,88.052,0.77900556]
[1771090963574,0.77212576,88.076,88.045,11.35779928]
[1771090964567,11.35395969,88.075,88.041,12.13734996]
[1771090964772,0.77212576,88.074,88.042,0.77900556]
[1771090966172,0.77212576,88.069,88.036,0.77900556]
[1771090966484,0.77212576,88.069,88.034,11.35915332]
[1771090967277,39.74201752,88.068,88.023,11.36054949]
[1771090967486,2.89091362,88.06,88.024,0.77900556]
[1771090967677,0.77212576,88.059,88.024,0.77900556]
[1771090968582,0.77212576,88.057,88.013,0.77900556]
[1771090968880,0.77212576,88.055,88.031,0.77900556]
[1771090969778,28.3869155,88.069,88.012,39.76730445]
[1771090969779,0.77212576,88.067,88.041,0.77900556]
[1771090971083,0.77212576,88.065,88.041,0.77900556]
[1771090971278,0.77212576,88.065,88.03,2.89091362]
[1771090971461,0.77212576,88.065,88.027,11.36004226]
[1771090971662,2.89091362,88.06,88.024,0.77900556]
[1771090971978,0.77212576,88.059,88.025,11.36040897]
[1771090974878,0.77212576,88.057,88.025,11.36040897]
[1771090978190,0.77212576,88.055,88.02,11.36100876]
[1771090978394,0.77212576,88.049,88.02,11.36100876]
[1771090979392,0.77212576,88.047,88.02,11.36100876]
[1771090980295,0.77212576,88.045,88.02,11.36100876]
[1771090980486,0.77212576,88.045,88.016,0.77900556]
[1771090980689,0.77212576,88.044,88.017,11.36144153]
[1771090980996,2.89091362,88.04,88.008,11.36247579]
[1771090981187,0.77212576,88.038,88.008,11.36247579]
[1771090981379,0.77212576,88.038,88.004,0.77900556]
[1771090981380,0.77212576,88.036,88.004,0.77900556]
[1771090982281,52.11212576,88.036,88.005,0.77900556]
[1771090982481,0.77212576,88.035,88.005,0.77900556]
[1771090983488,0.77212576,88.033,88.005,0.77900556]
[1771090985879,0.77212576,88.033,88.007,0.77900556]
[1771090986902,0.77212576,88.033,88.009,0.77900556]
[1771090987090,51.4,88.044,88.011,0.77900556]
[1771090987316,51.4,88.045,88.011,0.77900556]
[1771090987686,56.76525856,88.083,88.021,0.77900556]
[1771090987687,0.77212576,88.053,88.021,0.77900556]
[1771090988112,11.35629252,88.057,88.021,0.77900556]
[1771090988289,0.77212576,88.065,88.031,0.77900556]
[1771090988607,51.4,88.064,88.041,0.77900556]
[1771090989609,11.35550685,88.063,88.041,0.77900556]
[1771090991106,51.4,88.064,88.03,2.89322532]
[1771090991107,51.4,88.064,88.043,0.77900556]
[1771090992805,0.77212576,88.066,88.043,0.77900556]
[1771090993011,52.21212576,88.066,88.043,0.77900556]
[1771090995805,2.89322532,88.08,88.011,4.61729252]
[1771090995806,0.74047884,88.072,88.045,0.75636841]
[1771090996003,51.48,88.071,88.051,0.75636841]
[1771090998120,52.24047884,88.072,88.052,0.75636841]
[1771091003204,0.74047884,88.071,88.052,0.75636841]
[1771091006021,51.62,88.077,88.054,0.75636841]
[1771091006221,7.44884125,88.093,88.061,0.75636841]
[1771091006222,51.62,88.079,88.061,0.75636841]
[1771091008307,51.66,88.081,88.063,0.75636841]
[1771091009306,51.66,88.082,88.063,0.75636841]
[1771091009726,0.74047884,88.085,88.063,0.75636841]
[1771091010029,52.40047884,88.085,88.063,0.75636841]
[1771091010224,52.40047884,88.085,88.064,11.3553779]
[1771091010425,51.66,88.085,88.065,0.75636841]
[1771091010615,0.74047884,88.084,88.064,11.3553779]
[1771091010933,102.7,88.129,88.064,11.3553779]
[1771091010934,0.74047884,88.095,88.065,0.75636841]
[1771091011228,0.74047884,88.093,88.071,0.75636841]
[1771091013329,0.74047884,88.093,88.072,11.35434644]
[1771091013727,11.35165653,88.093,88.065,0.75636841]
[1771091014028,0.74047884,88.092,88.065,0.75636841]
[1771091015019,0.74047884,88.09,88.065,0.75636841]
[1771091015517,0.74047884,88.09,88.07,2.89322532]
[1771091016337,0.74047884,88.09,88.066,11.35512002]
[1771091016653,0.74047884,88.088,88.058,11.35613722]
[1771091018446,0.74047884,88.086,88.058,11.35613722]
[1771091019133,0.74047884,88.086,88.052,11.35685771]
[1771091019332,0.74047884,88.084,88.052,11.35685771]
[1771091021141,0.74047884,88.084,88.052,12.04339432]
[1771091021439,0.70492332,88.082,88.052,12.04339432]
[1771091021734,0.70492332,88.082,88.053,0.68653661]
[1771091022829,0.70492332,88.082,88.055,0.68653661]
[1771091024239,0.70492332,88.082,88.056,11.35640955]
[1771091024420,0.70492332,88.082,88.061,0.73330964]
[1771091025931,51.8,88.092,88.071,0.73330964]
[1771091026435,0.72860673,88.099,88.08,3.62653496]
[1771091026436,51.8,88.094,88.08,3.62653496]
[1771091027327,51.82,88.093,88.073,0.73330964]
[1771091028425,51.82,88.093,88.075,0.73330964]
[1771091029849,0.72860673,88.115,88.081,0.73330964]
[1771091030038,51.84,88.115,88.101,0.73330964]
[1771091033943,0.72860673,88.113,88.08,2.89322532]
[1771091034250,0.72860673,88.111,88.08,2.89322532]
[1771091034626,0.72860673,88.111,88.071,0.73330964]
[1771091035022,51.9,88.11,88.071,0.73330964]
[1771091035234,0.72860673,88.109,88.071,0.73330964]
[1771091036444,51.9,88.11,88.072,11.35434644]
[1771091036445,0.72860673,88.107,88.072,11.35434644]
[1771091038242,0.72860673,88.107,88.072,12.08765608]
[1771091038551,0.72860673,88.107,88.073,0.73330964]
[1771091038938,0.72860673,88.105,88.08,2.89322532]
[1771091040242,0.72860673,88.103,88.08,2.89322532]
[1771091041628,11.35048012,88.102,88.08,2.89322532]
[1771091041828,0.72860673,88.101,88.07,2.89322532]
[1771091043149,0.72860673,88.089,88.057,11.35622897]
[1771091043454,0.72860673,88.087,88.057,11.35622897]
[1771091043854,0.72860673,88.085,88.057,11.35622897]
[1771091044350,0.72860673,88.079,88.036,0.73330964]
[1771091044554,0.72860673,88.077,88.038,0.73330964]
[1771091044748,0.72860673,88.083,88.061,0.73330964]
[1771091044954,51.96,88.084,88.07,3.62653496]
[1771091045140,51.96,88.084,88.07,0.73330964]
[1771091045542,0.72860673,88.083,88.061,0.73330964]
[1771091045933,0.72860673,88.082,88.061,0.73330964]
[1771091046134,51.96,88.084,88.062,0.73330964]
[1771091048456,0.72860673,88.083,88.062,0.73330964]
[1771091048653,0.72860673,88.083,88.061,11.35573454]
[1771091048840,0.72860673,88.083,88.052,0.73330964]
[1771091049249,0.72860673,88.081,88.052,0.73330964]
[1771091050854,0.72860673,88.079,88.052,0.73330964]
[1771091052464,0.72860673,88.079,88.05,2.8893423]
[1771091052671,0.72860673,88.079,88.048,0.73330964]
[1771091052842,0.77312272,88.077,88.048,0.73330964]
[1771091053738,0.77312272,88.077,88.05,0.74680562]
[1771091054954,0.77312272,88.075,88.05,0.74680562]
[1771091055859,0.77312272,88.075,88.052,0.74680562]
[1771091057052,0.77312272,88.075,88.054,0.74680562]
[1771091061276,0.77312272,88.075,88.056,0.74680562]
[1771091062870,52.85312272,88.086,88.063,0.74680562]
[1771091063972,0.77312272,88.085,88.063,0.74680562]
[1771091065751,52.12,88.087,88.071,0.74680562]
[1771091066176,0.77312272,88.093,88.071,0.74680562]
[1771091068758,0.77312272,88.093,88.073,0.74680562]
[1771091069950,0.77312272,88.093,88.074,11.3540886]
[1771091070157,0.77312272,88.093,88.075,0.74680562]
[1771091076279,52.24,88.092,88.075,0.74680562]
[1771091076483,53.01312272,88.092,88.075,0.74680562]
[1771091077571,52.26,88.091,88.075,0.74680562]
[1771091077779,53.03312272,88.091,88.075,0.74680562]
[1771091077968,52.26,88.091,88.077,0.74680562]
[1771091078279,52.26,88.093,88.077,0.74680562]
[1771091078863,52.26,88.099,88.077,0.74680562]
[1771091079668,52.26,88.099,88.079,0.74680562]
[1771091081166,0.80582217,88.12,88.09,2.8893423]
[1771091081372,52.3,88.119,88.09,2.8893423]
[1771091081871,0.80582217,88.118,88.091,11.35189746]
[1771091082790,11.34854795,88.117,88.087,11.35238547]
[1771091082977,0.80582217,88.116,88.087,11.35238547]
[1771091084591,0.80582217,88.116,88.09,2.8893423]
[1771091086074,0.80582217,88.115,88.09,2.8893423]
[1771091086685,0.80582217,88.113,88.09,2.8893423]
[1771091089292,52.3,88.119,88.091,11.35189746]
[1771091089597,0.80582217,88.118,88.091,11.35189746]
[1771091090381,0.80582217,88.117,88.091,11.35189746]
[1771091096998,0.80582217,88.115,88.091,11.35189746]
[1771091098802,0.80582217,88.109,88.07,2.8893423]
[1771091099011,0.80582217,88.098,88.06,11.35585741]
[1771091099306,11.35086663,88.099,88.06,11.35585741]
[1771091099307,0.80582217,88.096,88.06,14.24519971]
[1771091100392,0.80582217,88.094,88.061,0.06240184]
[1771091100605,52.48,88.095,88.081,0.06240184]
[1771091101321,0.80582217,88.105,88.082,0.06563654]
[1771091101614,0.80582217,88.105,88.09,2.8893423]
[1771091101816,0.80582217,88.113,88.09,2.8893423]
[1771091102592,0.80582217,88.119,88.092,0.0688341]
[1771091102801,0.80582217,88.119,88.091,11.35189746]
[1771091102802,0.1,88.13,88.101,0.79034294]
[1771091103383,0.1,88.13,88.111,0.79034294]
[1771091104790,0.1,88.13,88.113,0.79034294]
[1771091106008,0.8365106,88.13,88.113,0.79034294]
[1771091109515,0.7365106,88.128,88.095,11.35138203]
[1771091109711,0.7365106,88.128,88.096,0.79034294]
[1771091110206,0.7365106,88.128,88.101,0.79034294]
[1771091110594,0.1,88.13,88.111,0.79034294]
[1771091111727,0.1,88.13,88.113,0.79034294]
[1771091112914,0.89702231,88.13,88.113,0.79034294]
[1771091113221,0.89702231,88.13,88.112,11.34919193]
[1771091113427,0.89702231,88.13,88.097,0.81272673]
[1771091113615,0.89702231,88.13,88.102,0.81272673]
[1771091113799,0.1,88.13,88.111,0.81272673]
[1771091114804,0.89702231,88.13,88.111,0.81272673]
[1771091115004,0.89702231,88.13,88.11,2.8862146]
[1771091115005,0.89702231,88.13,88.105,0.81272673]
[1771091115501,0.89702231,88.13,88.086,4.61729252]
[1771091115502,0.1,88.13,88.122,11.34790404]
[1771091115704,0.1,88.13,88.123,0.81272673]
[1771091116917,0.1,88.13,88.122,11.34790404]
[1771091126912,0.1,88.13,88.113,0.81272673]
[1771091127115,0.89702231,88.13,88.113,0.81272673]
[1771091129231,0.89702231,88.13,88.114,11.34893433]
[1771091129433,0.79702231,88.129,88.114,11.34893433]
[1771091130535,0.79702231,88.129,88.105,0.81272673]
[1771091132641,0.79702231,88.129,88.107,0.81272673]
[1771091135126,0.79702231,88.129,88.108,12.1624339]
[1771091136345,0.79702231,88.119,88.072,0.81272673]
[1771091136520,0.79702231,88.109,88.074,30.0]
[1771091137050,0.79702231,88.089,88.05,0.81272673]
[1771091137224,0.79702231,88.079,88.051,11.35705443]
[1771091137840,0.79702231,88.069,88.051,11.35705443]
[1771091138144,0.79702231,88.076,88.052,0.81272673]
[1771091139036,0.79702231,88.082,88.052,0.81272673]
[1771091139344,0.79702231,88.082,88.054,0.81272673]
[1771091139540,0.79702231,88.088,88.054,0.81272673]
[1771091139745,0.79702231,88.088,88.053,39.74878765]
[1771091139746,0.79702231,88.088,88.061,0.81272673]
[1771091140637,0.79702231,88.097,88.061,0.81272673]
[1771091141642,0.79702231,88.097,88.062,11.3556358]
[1771091141845,0.79702231,88.097,88.063,0.86009861]
[1771091144044,0.79702231,88.097,88.064,11.3553779]
[1771091144341,0.79702231,88.097,88.065,0.78413702]
[1771091145844,0.86218422,88.103,88.071,0.78413702]
[1771091146026,0.86218422,88.103,88.073,0.78413702]
[1771091147039,0.86218422,88.103,88.081,0.78413702]
[1771091147341,0.86218422,88.113,88.081,0.78413702]
[1771091149046,0.86218422,88.113,88.083,0.78413702]
[1771091149546,0.86218422,88.113,88.082,39.73570081]
[1771091149547,0.1,88.13,88.091,0.78413702]
[1771091151250,0.1,88.13,88.101,0.78413702]